fUSD/lending_fUSD_20260616
["ID","MTS","AMOUNT","RATE_DAILY","PERIOD"]
[425195081,1781565112000,-307.849135,0.0003649,30]
[425195085,1781565112000,-359.570687,0.0003649,30]
[425195079,1781565112000,-359.570687,0.0003649,30]
[425195080,1781565112000,-151.0,0.0003649,30]
[425195088,1781565112000,-345.16948,0.0003649,30]
[425195084,1781565112000,-345.16948,0.0003649,30]
[425195086,1781565112000,-272.62269,0.0003649,30]
[425195083,1781565112000,-399.757887,0.0003649,30]
[425195069,1781565112000,-307.849135,0.0003649,30]
[425195075,1781565112000,-272.62269,0.0003649,30]
[425195070,1781565112000,-272.62269,0.0003649,30]
[425195068,1781565112000,-151.0,0.0003649,30]
[425195071,1781565112000,-359.570687,0.0003649,30]
[425195067,1781565112000,-322.461,0.0003649,30]
[425195065,1781565112000,-307.849135,0.0003649,30]
[425195073,1781565112000,-151.0,0.0003649,30]
[425195064,1781565112000,-151.0,0.0003649,30]
[425195072,1781565112000,-322.461,0.0003649,30]
[425195063,1781565112000,-322.461,0.0003649,30]
[425195066,1781565112000,-359.570687,0.0003649,30]
[425195062,1781565112000,-322.461,0.0003649,30]
[425195097,1781565112000,-151.0,0.0003649,30]
[425195074,1781565112000,-307.849135,0.0003649,30]
[425195098,1781565112000,-151.0,0.0003649,30]
[425195090,1781565112000,-345.16948,0.0003649,30]
[425195087,1781565112000,-399.757887,0.0003649,30]
[425195099,1781565112000,-151.0,0.0003649,30]
[425195121,1781565112000,-1000.0,0.00036575,120]
[425195120,1781565112000,-473.97469501,0.00036555,4]
[425195115,1781565112000,-800.0,0.000365,7]
[425195118,1781565112000,-5000.0,0.00036536,10]
[425195117,1781565112000,-1000.0,0.0003652,120]
[425195119,1781565112000,-1000.0,0.00036547,120]
[425195113,1781565112000,-744.37323866,0.000365,120]
[425195114,1781565112000,-800.0,0.000365,7]
[425195112,1781565112000,-1000.0,0.00036493,120]
[425195110,1781565112000,-218.25,0.00036492,120]
[425195104,1781565112000,-500.0,0.00036492,120]
[425195106,1781565112000,-500.0,0.00036492,120]
[425195105,1781565112000,-500.0,0.00036492,120]
[425195116,1781565112000,-400.0,0.000365,7]
[425195111,1781565112000,-25000.0,0.00036492,10]
[425195101,1781565112000,-151.0,0.0003649,30]
[425195095,1781565112000,-151.0,0.0003649,30]
[425195089,1781565112000,-399.757887,0.0003649,30]
[425195092,1781565112000,-203.541089,0.0003649,30]
[425195094,1781565112000,-203.541089,0.0003649,30]
[425195093,1781565112000,-203.541089,0.0003649,30]
[425195091,1781565112000,-203.541089,0.0003649,30]
[425195100,1781565112000,-151.0,0.0003649,30]
[425195103,1781565112000,-500.0,0.00036492,120]
[425195107,1781565112000,-500.0,0.00036492,120]
[425195108,1781565112000,-500.0,0.00036492,120]
[425195109,1781565112000,-256.7907144,0.00036492,120]
[425195102,1781565112000,-163.2936167,0.00036492,120]
[425195164,1781565113000,-800.0,0.00037,7]
[425195161,1781565113000,-800.0,0.00037,7]
[425195162,1781565113000,-2500.0,0.00037,2]
[425195156,1781565113000,-5000.0,0.0003694,10]
[425195149,1781565113000,-1000.0,0.00036849,120]
[425195145,1781565113000,-250.0,0.0003681,7]
[425195144,1781565113000,-25000.0,0.00036801,10]
[425195152,1781565113000,-2499.99999999,0.00036902,2]
[425195159,1781565113000,-1502.95324118,0.00037,30]
[425195155,1781565113000,-1000.0,0.00036931,120]
[425195153,1781565113000,-1000.0,0.00036904,120]
[425195169,1781565113000,-4500.0,0.00037,2]
[425195158,1781565113000,-447.0,0.00036994,30]
[425195165,1781565113000,-471.0,0.00037,30]
[425195157,1781565113000,-668.55710065,0.00036958,120]
[425195160,1781565113000,-7549.0,0.00037,2]
[425195171,1781565113000,-1947.6062375,0.00037,120]
[425195166,1781565113000,-65935.28365206,0.00037,9]
[425195168,1781565113000,-561.18959513,0.00037,20]
[425195176,1781565113000,-2000.0,0.00037,30]
[425195170,1781565113000,-304.48563232,0.00037,120]
[425195167,1781565113000,-169.07192652,0.00037,2]
[425195174,1781565113000,-10000.0,0.00037,120]
[425195172,1781565113000,-757.08467002,0.00037,120]
[425195163,1781565113000,-365.0,0.00037,2]
[425195151,1781565113000,-1000.0,0.00036876,120]
[425195138,1781565113000,-1000.0,0.00036767,120]
[425195150,1781565113000,-12846.82441297,0.0003686,2]
[425195175,1781565113000,-168.20893723,0.00037,120]
[425195123,1781565113000,-1000.0,0.00036602,120]
[425195124,1781565113000,-25000.0,0.00036629,10]
[425195122,1781565113000,-1369.3583,0.000366,60]
[425195125,1781565113000,-1000.0,0.0003663,120]
[425195127,1781565113000,-1000.0,0.00036657,120]
[425195129,1781565113000,-1000.0,0.000367,2]
[425195132,1781565113000,-158.24410207,0.00036727,2]
[425195130,1781565113000,-1000.0,0.000367,2]
[425195126,1781565113000,-25000.0,0.00036653,10]
[425195131,1781565113000,-1000.0,0.00036712,120]
[425195128,1781565113000,-1000.0,0.00036684,120]
[425195133,1781565113000,-1000.0,0.00036739,120]
[425195136,1781565113000,-150.0,0.00036756,2]
[425195135,1781565113000,-552.0,0.00036748,12]
[425195137,1781565113000,-2032.29,0.00036765,10]
[425195134,1781565113000,-2327.0,0.00036747,11]
[425195139,1781565113000,-172.369597,0.0003678,120]
[425195140,1781565113000,-285.26,0.0003678,120]
[425195142,1781565113000,-1000.0,0.00036794,120]
[425195141,1781565113000,-164.23709403,0.00036787,2]
[425195154,1781565113000,-350.0,0.00036917,2]
[425195146,1781565113000,-5000.0,0.00036818,10]
[425195143,1781565113000,-1644.26271703,0.000368,2]
[425195147,1781565113000,-1000.0,0.00036821,120]
[425195148,1781565113000,-603.2478,0.00036847,30]
[425195173,1781565113000,-2172.91,0.00037,30]
[425195210,1781565113000,-204.52,0.00037407,2]
[425195181,1781565113000,-954.22552882,0.00037032,120]
[425195209,1781565113000,-204.52,0.00037405,2]
[425195208,1781565113000,-200.0,0.000374,15]
[425195211,1781565113000,-204.52,0.00037409,2]
[425195212,1781565113000,-204.52,0.00037409,2]
[425195213,1781565113000,-500.0,0.0003741,30]
[425195214,1781565113000,-204.52,0.00037411,2]
[425195215,1781565113000,-204.52,0.00037411,2]
[425195217,1781565113000,-204.52,0.00037413,2]
[425195216,1781565113000,-204.5,0.00037413,2]
[425195221,1781565113000,-1000.0,0.00037449,2]
[425195220,1781565113000,-1318.18,0.00037443,5]
[425195222,1781565113000,-150.0,0.00037449,2]
[425195219,1781565113000,-151.09,0.00037438,2]
[425195225,1781565113000,-1000.0,0.00037489,60]
[425195224,1781565113000,-169.85301566,0.00037482,120]
[425195223,1781565113000,-500.0,0.00037449,2]
[425195228,1781565113000,-800.0,0.000375,7]
[425195227,1781565113000,-250.0,0.00037498,45]
[425195226,1781565113000,-1021.0,0.00037494,14]
[425195231,1781565113000,-158.24410207,0.00037549,2]
[425195230,1781565113000,-367.04,0.000375,90]
[425195233,1781565113000,-1000.0,0.00037557,60]
[425195229,1781565113000,-800.0,0.000375,7]
[425195232,1781565113000,-151.0,0.00037549,2]
[425195177,1781565113000,-191.04570839,0.00037,16]
[425195207,1781565113000,-2081.71811847,0.00037397,30]
[425195202,1781565113000,-158.24410207,0.00037275,2]
[425195218,1781565113000,-1839.28156763,0.0003743,2]
[425195206,1781565113000,-180.376904,0.0003738,120]
[425195179,1781565113000,-1136.0,0.00037,7]
[425195205,1781565113000,-1001.0,0.0003737,120]
[425195180,1781565113000,-158.24410207,0.00037001,2]
[425195183,1781565113000,-1000.0,0.00037037,60]
[425195182,1781565113000,-1294.85510774,0.00037032,30]
[425195187,1781565113000,-1248.66658046,0.00037074,2]
[425195188,1781565113000,-5871.19913141,0.00037074,2]
[425195178,1781565113000,-10249.5068349,0.00037,14]
[425195186,1781565113000,-150.0,0.00037073,2]
[425195184,1781565113000,-478.77725494,0.00037041,120]
[425195190,1781565113000,-240.68537949,0.000371,30]
[425195200,1781565113000,-301.524,0.00037211,30]
[425195189,1781565113000,-181.415356,0.0003708,120]
[425195185,1781565113000,-152.0,0.00037062,13]
[425195203,1781565113000,-552.0,0.00037282,13]
[425195204,1781565113000,-500.0,0.00037305,39]
[425195191,1781565113000,-500.0,0.00037178,60]
[425195201,1781565113000,-883.0,0.0003726,120]
[425195199,1781565113000,-285.26,0.0003721,60]
[425195195,1781565113000,-1266.078,0.000372,120]
[425195194,1781565113000,-1147.92276,0.000372,120]
[425195196,1781565113000,-1266.078,0.000372,120]
[425195197,1781565113000,-1266.08,0.000372,120]
[425195193,1781565113000,-4581.0,0.000372,5]
[425195192,1781565113000,-411.0,0.00037178,2]
[425195198,1781565113000,-2000.0,0.00037205,30]
[425195274,1781565114000,-2080.17592889,0.00037809,10]
[425195272,1781565114000,-1934.38338736,0.00037809,10]
[425195277,1781565114000,-2319.72410669,0.00037809,10]
[425195273,1781565114000,-2005.9555727,0.00037809,10]
[425195271,1781565114000,-1865.36488656,0.00037809,10]
[425195264,1781565114000,-500.0,0.00037795,120]
[425195267,1781565114000,-1613.0535,0.00037809,10]
[425195266,1781565114000,-1555.5,0.00037809,10]
[425195265,1781565114000,-1500.0,0.00037809,10]
[425195262,1781565114000,-235.91023219,0.00037778,18]
[425195279,1781565114000,-2494.55939288,0.00037809,10]
[425195268,1781565114000,-1672.7364795,0.00037809,10]
[425195276,1781565114000,-2236.95670847,0.00037809,10]
[425195286,1781565114000,-156.587,0.00037809,7]
[425195281,1781565114000,-2682.57183977,0.00037809,10]
[425195278,1781565114000,-2405.55389863,0.00037809,10]
[425195280,1781565114000,-2586.85809042,0.00037809,10]
[425195275,1781565114000,-2157.14243826,0.00037809,10]
[425195283,1781565114000,-2884.75459676,0.00037809,10]
[425195284,1781565114000,-2991.49051684,0.00037809,10]
[425195287,1781565114000,-200.72513036,0.00037809,7]
[425195292,1781565114000,-1191.11104074,0.00037809,7]
[425195285,1781565114000,-151.0,0.00037809,7]
[425195293,1781565114000,-1235.18214925,0.00037809,7]
[425195288,1781565114000,-1030.0,0.00037809,7]
[425195260,1781565114000,-63223.7041321,0.00037747,2]
[425195282,1781565114000,-2781.82699784,0.00037809,10]
[425195263,1781565114000,-1514.69765204,0.00037779,7]
[425195236,1781565114000,-1545.03994571,0.00037608,7]
[425195269,1781565114000,-1734.62772924,0.00037809,10]
[425195291,1781565114000,-1148.61238259,0.00037809,7]
[425195234,1781565114000,-744.37323866,0.000376,120]
[425195237,1781565114000,-2229.73613385,0.00037608,7]
[425195241,1781565114000,-1545.88810126,0.00037608,7]
[425195238,1781565114000,-1429.63669655,0.00037608,7]
[425195240,1781565114000,-1531.59191141,0.00037608,2]
[425195246,1781565114000,-1380.90114858,0.00037608,7]
[425195235,1781565114000,-317445.0,0.000376,30]
[425195242,1781565114000,-2846.01900628,0.00037608,7]
[425195239,1781565114000,-1597.83655532,0.00037608,7]
[425195243,1781565114000,-1965.13964469,0.00037608,7]
[425195244,1781565114000,-1684.10950286,0.00037608,7]
[425195245,1781565114000,-1625.06748361,0.00037608,7]
[425195247,1781565114000,-322.23059967,0.0003761,30]
[425195250,1781565114000,-116548.86713583,0.0003763,2]
[425195251,1781565114000,-285.26,0.0003765,78]
[425195248,1781565114000,-278.13809427,0.0003761,30]
[425195254,1781565114000,-179.355905,0.00037681,120]
[425195249,1781565114000,-57346.08228156,0.0003762,2]
[425195255,1781565114000,-150.0,0.00037694,2]
[425195257,1781565114000,-250.0,0.00037706,46]
[425195259,1781565114000,-954.22552882,0.00037717,120]
[425195252,1781565114000,-171.12174107,0.00037654,60]
[425195258,1781565114000,-152.03334777,0.00037711,120]
[425195253,1781565114000,-10408.0,0.00037672,10]
[425195256,1781565114000,-7538.0,0.000377,117]
[425195261,1781565114000,-1000.0,0.00037764,60]
[425195270,1781565114000,-1798.80895522,0.00037809,10]
[425195289,1781565114000,-1068.11,0.00037809,7]
[425195305,1781565114000,-1910.18787185,0.00037809,7]
[425195296,1781565114000,-1377.42282658,0.00037809,7]
[425195323,1781565114000,-500.0,0.00037809,10]
[425195324,1781565114000,-151.0,0.00037809,10]
[425195326,1781565114000,-151.0,0.00037809,10]
[425195328,1781565114000,-500.0,0.00037809,10]
[425195327,1781565114000,-152.0,0.00037809,10]
[425195343,1781565114000,-152.0,0.00037809,10]
[425195331,1781565114000,-151.0,0.00037809,10]
[425195332,1781565114000,-152.0,0.00037809,10]
[425195342,1781565114000,-500.0,0.00037809,10]
[425195334,1781565114000,-500.0,0.00037809,10]
[425195336,1781565114000,-151.0,0.00037809,10]
[425195335,1781565114000,-151.0,0.00037809,10]
[425195333,1781565114000,-500.0,0.00037809,10]
[425195337,1781565114000,-500.0,0.00037809,10]
[425195338,1781565114000,-152.0,0.00037809,10]
[425195339,1781565114000,-500.0,0.00037809,10]
[425195340,1781565114000,-151.0,0.00037809,10]
[425195341,1781565114000,-151.0,0.00037809,10]
[425195344,1781565114000,-500.0,0.00037809,10]
[425195350,1781565114000,-151.0,0.00037809,10]
[425195347,1781565114000,-500.0,0.00037809,10]
[425195349,1781565114000,-151.0,0.00037809,10]
[425195352,1781565114000,-152.0,0.00037809,10]
[425195348,1781565114000,-152.0,0.00037809,10]
[425195345,1781565114000,-151.0,0.00037809,10]
[425195353,1781565114000,-151.0,0.00037809,10]
[425195351,1781565114000,-500.0,0.00037809,10]
[425195330,1781565114000,-151.0,0.00037809,10]
[425195329,1781565114000,-500.0,0.00037809,10]
[425195290,1781565114000,-1107.63007,0.00037809,7]
[425195321,1781565114000,-500.0,0.00037809,10]
[425195322,1781565114000,-500.0,0.00037809,10]
[425195298,1781565114000,-1481.2378076,0.00037809,7]
[425195294,1781565114000,-1280.88388877,0.00037809,7]
[425195297,1781565114000,-1428.38747117,0.00037809,7]
[425195295,1781565114000,-1328.27659266,0.00037809,7]
[425195346,1781565114000,-151.0,0.00037809,10]
[425195302,1781565114000,-1712.93078311,0.00037809,7]
[425195300,1781565114000,-1592.87721992,0.00037809,7]
[425195304,1781565114000,-1842.0326633,0.00037809,7]
[425195303,1781565114000,-1776.30922209,0.00037809,7]
[425195301,1781565114000,-1651.81367706,0.00037809,7]
[425195307,1781565114000,-2054.15682156,0.00037809,7]
[425195318,1781565114000,-151.0,0.00037809,10]
[425195299,1781565114000,-1536.04360648,0.00037809,7]
[425195317,1781565114000,-500.0,0.00037809,10]
[425195306,1781565114000,-1980.8648231,0.00037809,7]
[425195320,1781565114000,-191.9644892,0.00037809,10]
[425195319,1781565114000,-500.0,0.00037809,10]
[425195313,1781565114000,-500.0,0.00037809,10]
[425195315,1781565114000,-151.0,0.00037809,10]
[425195311,1781565114000,-500.0,0.00037809,10]
[425195316,1781565114000,-500.0,0.00037809,10]
[425195325,1781565114000,-500.0,0.00037809,10]
[425195310,1781565114000,-151.0,0.00037809,10]
[425195314,1781565114000,-151.0,0.00037809,10]
[425195308,1781565114000,-151.0,0.00037809,10]
[425195312,1781565114000,-151.0,0.00037809,10]
[425195309,1781565114000,-500.0,0.00037809,10]
[425195391,1781565115000,-151.0,0.000379,30]
[425195404,1781565115000,-151.0,0.000379,30]
[425195396,1781565115000,-193.531668,0.000379,30]
[425195397,1781565115000,-193.531668,0.000379,30]
[425195392,1781565115000,-234.712466,0.000379,30]
[425195389,1781565115000,-151.0,0.000379,30]
[425195385,1781565115000,-248.325993,0.000379,30]
[425195387,1781565115000,-151.0,0.000379,30]
[425195390,1781565115000,-234.712466,0.000379,30]
[425195388,1781565115000,-234.712466,0.000379,30]
[425195395,1781565115000,-151.0,0.000379,30]
[425195386,1781565115000,-248.325993,0.000379,30]
[425195405,1781565115000,-151.0,0.000379,30]
[425195412,1781565115000,-278.0,0.00037942,120]
[425195402,1781565115000,-413.364487,0.000379,30]
[425195394,1781565115000,-151.0,0.000379,30]
[425195403,1781565115000,-413.364487,0.000379,30]
[425195398,1781565115000,-193.531668,0.000379,30]
[425195401,1781565115000,-413.364487,0.000379,30]
[425195400,1781565115000,-413.364487,0.000379,30]
[425195407,1781565115000,-500.0,0.00037931,40]
[425195417,1781565115000,-500.0,0.00037945,44]
[425195418,1781565115000,-500.0,0.00037945,43]
[425195408,1781565115000,-500.0,0.00037931,39]
[425195409,1781565115000,-500.0,0.00037931,38]
[425195406,1781565115000,-151.0,0.000379,30]
[425195384,1781565115000,-248.325993,0.000379,30]
[425195399,1781565115000,-193.531668,0.000379,30]
[425195382,1781565115000,-151.0,0.000379,30]
[425195371,1781565115000,-267.17282765,0.00037809,10]
[425195393,1781565115000,-234.712466,0.000379,30]
[425195416,1781565115000,-500.0,0.00037945,45]
[425195355,1781565115000,-500.0,0.00037809,10]
[425195354,1781565115000,-151.0,0.00037809,10]
[425195357,1781565115000,-151.0,0.00037809,10]
[425195358,1781565115000,-151.0,0.00037809,10]
[425195368,1781565115000,-151.0,0.00037809,10]
[425195362,1781565115000,-500.0,0.00037809,10]
[425195369,1781565115000,-151.0,0.00037809,10]
[425195364,1781565115000,-151.0,0.00037809,10]
[425195363,1781565115000,-152.0,0.00037809,10]
[425195360,1781565115000,-152.0,0.00037809,10]
[425195359,1781565115000,-500.0,0.00037809,10]
[425195361,1781565115000,-151.0,0.00037809,10]
[425195367,1781565115000,-152.0,0.00037809,10]
[425195365,1781565115000,-151.0,0.00037809,10]
[425195366,1781565115000,-500.0,0.00037809,10]
[425195381,1781565115000,-151.0,0.000379,30]
[425195380,1781565115000,-151.0,0.000379,30]
[425195379,1781565115000,-935.81941019,0.00037898,31]
[425195372,1781565115000,-151.0,0.00037809,10]
[425195375,1781565115000,-158.24410207,0.00037823,2]
[425195374,1781565115000,-552.0,0.00037816,13]
[425195373,1781565115000,-151.0,0.00037809,10]
[425195376,1781565115000,-1686.48,0.00037864,120]
[425195370,1781565115000,-151.0,0.00037809,10]
[425195378,1781565115000,-250.0,0.00037883,47]
[425195377,1781565115000,-163.0,0.0003788,60]
[425195383,1781565115000,-248.325993,0.000379,30]
[425195415,1781565115000,-500.0,0.00037945,46]
[425195356,1781565115000,-152.0,0.00037809,10]
[425195413,1781565115000,-278.0,0.00037942,120]
[425195447,1781565115000,-152.0,0.00038,3]
[425195449,1781565115000,-152.0,0.00038,3]
[425195444,1781565115000,-800.0,0.00038,7]
[425195454,1781565115000,-2000.0,0.00038,30]
[425195455,1781565115000,-151.0,0.00038,3]
[425195450,1781565115000,-240.0,0.00038,3]
[425195452,1781565115000,-500.0,0.00038,60]
[425195457,1781565115000,-185.593992,0.00038,3]
[425195468,1781565115000,-355.542782,0.00038,30]
[425195458,1781565115000,-151.0,0.00038,30]
[425195459,1781565115000,-151.0,0.00038,30]
[425195467,1781565115000,-355.542782,0.00038,30]
[425195456,1781565115000,-151.0,0.00038,3]
[425195453,1781565115000,-500.0,0.00038,60]
[425195463,1781565115000,-365.834489,0.00038,30]
[425195460,1781565115000,-800.0,0.00038,7]
[425195462,1781565115000,-365.834489,0.00038,30]
[425195466,1781565115000,-355.542782,0.00038,30]
[425195465,1781565115000,-500.0,0.00038,60]
[425195470,1781565115000,-355.542782,0.00038,30]
[425195469,1781565115000,-347.033666,0.00038,30]
[425195476,1781565115000,-322.461,0.00038,30]
[425195475,1781565115000,-322.461,0.00038,30]
[425195472,1781565115000,-151.0,0.00038,30]
[425195473,1781565115000,-347.033666,0.00038,30]
[425195471,1781565115000,-347.033666,0.00038,30]
[425195474,1781565115000,-347.033666,0.00038,30]
[425195410,1781565115000,-500.0,0.00037931,37]
[425195464,1781565115000,-365.834489,0.00038,30]
[425195451,1781565115000,-151.0,0.00038,30]
[425195461,1781565115000,-365.834489,0.00038,30]
[425195446,1781565115000,-152.0,0.00038,3]
[425195411,1781565115000,-1226.0,0.00037941,3]
[425195448,1781565115000,-152.0,0.00038,3]
[425195414,1781565115000,-500.0,0.00037945,47]
[425195419,1781565115000,-500.0,0.00037945,42]
[425195421,1781565115000,-500.0,0.00037962,2]
[425195422,1781565115000,-400.0,0.0003797,2]
[425195423,1781565115000,-400.0,0.0003797,2]
[425195426,1781565115000,-1656.31903185,0.00037991,120]
[425195424,1781565115000,-500.0,0.0003797,30]
[425195420,1781565115000,-500.0,0.00037945,41]
[425195429,1781565115000,-10000.0,0.00038,120]
[425195425,1781565115000,-151.919256,0.00037981,120]
[425195427,1781565115000,-11356.41621565,0.00037991,120]
[425195428,1781565115000,-2655.5266008,0.00037999,2]
[425195430,1781565115000,-29684.62318233,0.00038,10]
[425195431,1781565115000,-62282.9697165,0.00038,15]
[425195443,1781565115000,-152.0,0.00038,120]
[425195432,1781565115000,-6000.0,0.00038,120]
[425195440,1781565115000,-291.0,0.00038,7]
[425195434,1781565115000,-760161.064906,0.00038,15]
[425195437,1781565115000,-1000.0,0.00038,120]
[425195438,1781565115000,-800.0,0.00038,7]
[425195441,1781565115000,-800.0,0.00038,7]
[425195436,1781565115000,-1000.0,0.00038,120]
[425195439,1781565115000,-153.0,0.00038,120]
[425195435,1781565115000,-4000.0,0.00038,120]
[425195442,1781565115000,-174.45830528,0.00038,7]
[425195433,1781565115000,-979.7805035,0.00038,10]
[425195445,1781565115000,-152.0,0.00038,3]
[425195503,1781565116000,-345.16948,0.00038,30]
[425195502,1781565116000,-399.757887,0.00038,30]
[425195517,1781565116000,-300.00923131,0.00038,3]
[425195501,1781565116000,-345.16948,0.00038,30]
[425195495,1781565116000,-272.62269,0.00038,30]
[425195504,1781565116000,-203.541089,0.00038,30]
[425195505,1781565116000,-203.541089,0.00038,30]
[425195507,1781565116000,-203.541089,0.00038,30]
[425195513,1781565116000,-151.0,0.00038,30]
[425195516,1781565116000,-152.0,0.00038,3]
[425195508,1781565116000,-151.0,0.00038,30]
[425195510,1781565116000,-151.0,0.00038,30]
[425195518,1781565116000,-152.0,0.00038,3]
[425195514,1781565116000,-161.258725,0.00038,30]
[425195509,1781565116000,-151.0,0.00038,30]
[425195515,1781565116000,-200.0,0.00038,2]
[425195506,1781565116000,-203.541089,0.00038,30]
[425195512,1781565116000,-151.0,0.00038,30]
[425195519,1781565116000,-152.0,0.00038,3]
[425195499,1781565116000,-272.62269,0.00038,30]
[425195493,1781565116000,-267.978703,0.00038,30]
[425195497,1781565116000,-345.16948,0.00038,30]
[425195520,1781565116000,-172.0,0.00038,3]
[425195480,1781565116000,-151.0,0.00038,30]
[425195477,1781565116000,-151.0,0.00038,30]
[425195478,1781565116000,-307.849135,0.00038,30]
[425195479,1781565116000,-359.570687,0.00038,30]
[425195492,1781565116000,-359.570687,0.00038,30]
[425195481,1781565116000,-322.461,0.00038,30]
[425195482,1781565116000,-307.849135,0.00038,30]
[425195483,1781565116000,-272.62269,0.00038,30]
[425195498,1781565116000,-359.570687,0.00038,30]
[425195484,1781565116000,-359.570687,0.00038,30]
[425195486,1781565116000,-322.461,0.00038,30]
[425195489,1781565116000,-192.156584,0.00038,30]
[425195491,1781565116000,-345.16948,0.00038,30]
[425195490,1781565116000,-399.757887,0.00038,30]
[425195487,1781565116000,-307.849135,0.00038,30]
[425195488,1781565116000,-272.62269,0.00038,30]
[425195494,1781565116000,-307.849135,0.00038,30]
[425195496,1781565116000,-399.757887,0.00038,30]
[425195500,1781565116000,-399.757887,0.00038,30]
[425195485,1781565116000,-151.0,0.00038,30]
[425195524,1781565116000,-360.9441,0.00038,96]
[425195511,1781565116000,-151.0,0.00038,30]
[425195521,1781565116000,-200.0,0.00038,2]
[425195548,1781565116000,-285.26,0.0003809,93]
[425195546,1781565116000,-5842.25,0.00038072,2]
[425195547,1781565116000,-150.0,0.00038074,120]
[425195551,1781565116000,-9891.12348327,0.000381,33]
[425195550,1781565116000,-362.85262543,0.000381,33]
[425195555,1781565116000,-154.281915,0.000381,30]
[425195552,1781565116000,-345.12666472,0.000381,15]
[425195554,1781565116000,-30000.0,0.000381,120]
[425195557,1781565116000,-154.281915,0.000381,30]
[425195549,1781565116000,-158.24410207,0.00038097,2]
[425195558,1781565116000,-154.281915,0.000381,30]
[425195560,1781565116000,-500.0,0.00038101,50]
[425195562,1781565116000,-151.0,0.00038101,50]
[425195561,1781565116000,-500.0,0.00038101,50]
[425195564,1781565116000,-500.0,0.00038101,50]
[425195565,1781565116000,-152.0,0.00038101,50]
[425195563,1781565116000,-151.0,0.00038101,50]
[425195567,1781565116000,-1043.43,0.00038102,120]
[425195566,1781565116000,-37131.9,0.00038102,13]
[425195523,1781565116000,-360.94409,0.00038,96]
[425195559,1781565116000,-151.0,0.00038101,50]
[425195553,1781565116000,-2515.6342666,0.000381,33]
[425195556,1781565116000,-154.281915,0.000381,30]
[425195543,1781565116000,-151.0,0.00038048,30]
[425195545,1781565116000,-152.0,0.00038048,30]
[425195522,1781565116000,-349.0,0.00038,2]
[425195525,1781565116000,-360.94409,0.00038,96]
[425195527,1781565116000,-360.9441,0.00038,96]
[425195530,1781565116000,-2184.0,0.00038,30]
[425195531,1781565116000,-200.0,0.00038,2]
[425195526,1781565116000,-360.94409,0.00038,96]
[425195528,1781565116000,-360.9441,0.00038,96]
[425195539,1781565116000,-151.0,0.00038048,30]
[425195533,1781565116000,-200.42,0.00038014,120]
[425195529,1781565116000,-195.042,0.00038,37]
[425195541,1781565116000,-500.0,0.00038048,30]
[425195538,1781565116000,-6078.0,0.00038036,2]
[425195534,1781565116000,-278.0,0.00038016,120]
[425195536,1781565116000,-250.0,0.00038032,48]
[425195535,1781565116000,-278.0,0.00038016,120]
[425195537,1781565116000,-3645.0,0.00038036,2]
[425195532,1781565116000,-11680.13,0.0003801,9]
[425195542,1781565116000,-151.0,0.00038048,30]
[425195540,1781565116000,-500.0,0.00038048,30]